fUSD/lending_fUSD_20250609
["ID","MTS","AMOUNT","RATE_DAILY","PERIOD"]
[365144121,1749490246094,-191.14974904,0.00019177,2]
[365144122,1749490246103,-500.0,0.00019177,2]
[365144123,1749490246114,-500.0,0.00019177,2]
[365144124,1749490246123,-500.0,0.00019177,2]
[365144125,1749490246133,-500.0,0.00019177,2]
[365144126,1749490246143,-500.0,0.00019177,2]
[365144127,1749490246152,-500.0,0.00019177,2]
[365144128,1749490246162,-500.0,0.00019177,2]
[365144129,1749490246171,-500.0,0.00019177,2]
[365144130,1749490246181,-328.86366017,0.00019177,2]
[365144131,1749490246190,-300.0,0.00019177,2]
[365144132,1749490246200,-157.72449,0.00019178,2]
[365144133,1749490246210,-490.0,0.00019178,2]
[365144134,1749490246220,-165.997562,0.00019178,2]
[365144135,1749490246229,-490.0,0.00019178,2]
[365144136,1749490246239,-490.0,0.00019178,2]
[365144137,1749490246249,-490.0,0.00019178,2]
[365144138,1749490246259,-490.0,0.00019178,2]
[365144139,1749490246268,-490.0,0.00019178,2]
[365144140,1749490246278,-490.0,0.00019178,2]
[365144141,1749490246287,-490.0,0.00019178,2]
[365144142,1749490246297,-490.0,0.00019178,2]
[365144143,1749490246306,-490.0,0.00019178,2]
[365144144,1749490246316,-490.0,0.00019178,2]
[365144145,1749490246326,-490.0,0.00019178,2]
[365144146,1749490246335,-490.0,0.00019178,2]
[365144147,1749490246344,-490.0,0.00019178,2]
[365144148,1749490246354,-490.0,0.00019178,2]
[365144149,1749490246363,-490.0,0.00019178,2]
[365144150,1749490246373,-490.0,0.00019178,2]
[365144151,1749490246383,-490.0,0.00019178,2]
[365144152,1749490246393,-420.0,0.00019178,2]
[365144153,1749490246627,-279.92042378,0.00019178,2]
[365144154,1749490246638,-490.0,0.00019178,2]
[365144155,1749490246648,-490.0,0.00019178,2]
[365144156,1749490246659,-490.0,0.00019178,2]
[365144157,1749490246668,-490.0,0.00019178,2]
[365144158,1749490246678,-490.0,0.00019178,2]
[365144159,1749490246688,-490.0,0.00019178,2]
[365144160,1749490246698,-297.60360687,0.00019178,2]
[365144161,1749490246707,-490.0,0.00019178,2]
[365144162,1749490246717,-490.0,0.00019178,2]
[365144163,1749490246726,-490.0,0.00019178,2]
[365144164,1749490246735,-490.0,0.00019178,2]
[365144165,1749490246745,-490.0,0.00019178,2]
[365144166,1749490246754,-490.0,0.00019178,2]
[365144167,1749490246763,-490.0,0.00019178,2]
[365144168,1749490246773,-504.02,0.00019178,2]
[365144169,1749490246783,-490.0,0.00019178,2]
[365144170,1749490246793,-490.0,0.00019178,2]
[365144171,1749490246803,-799.05,0.00019178,2]
[365144172,1749490246812,-490.0,0.00019178,2]
[365144173,1749490246822,-490.0,0.00019178,2]
[365144174,1749490246831,-490.0,0.00019178,2]
[365144175,1749490246840,-490.0,0.00019178,2]
[365144176,1749490246850,-490.0,0.00019178,2]
[365144177,1749490246859,-490.0,0.00019178,2]
[365144178,1749490246869,-490.0,0.00019178,2]
[365144179,1749490246879,-422.36003495,0.00019178,2]
[365144180,1749490246888,-385.39113472,0.00019178,2]
[365144181,1749490246897,-490.0,0.00019178,2]
[365144182,1749490246907,-29.98677914,0.00019178,2]
[365144183,1749490254944,427.26487304,0.0001801,2]
[365144186,1749490844221,435.2,0.00013699,2]
[365144188,1749490988265,-207.19194834,0.00018017,2]
[365144189,1749490996083,-223.80805166,0.00018017,2]
[365144190,1749491012690,-168.6922585,0.00018017,2]
[365144191,1749491026713,-151.0,0.00018012,2]
[365144192,1749491042780,-84.55,0.00018012,2]
[365144193,1749491042804,-33.8777415,0.00018017,2]
[365144194,1749491072803,302.0,0.00017934,2]
[365144195,1749491292041,200.0,0.00017135,2]
[365144196,1749491393205,1142.32,0.00015964,2]
[365144199,1749491422232,4855.01,0.00017868,2]
[365144208,1749491431727,-166.48,0.00018025,2]
[365144209,1749491431737,-300.0,0.00018041,2]
[365144210,1749491431747,-300.0,0.00018057,2]
[365144211,1749491431757,-300.0,0.00018083,2]
[365144212,1749491431767,-894.99,0.0001809,2]
[365144213,1749491431776,-632.47,0.00018134,2]
[365144214,1749491431785,-300.0,0.00018148,2]
[365144215,1749491431795,-300.0,0.00018148,2]
[365144216,1749491431804,-1200.0,0.00018148,2]
[365144217,1749491431813,-9791.06,0.00018149,2]
[365144218,1749491431823,-1000.0,0.00018153,2]
[365144219,1749491431832,-1142.32,0.00018228,2]
[365144220,1749491431841,-200.0,0.00018263,3]
[365144221,1749491431851,-33957.34,0.00018356,2]
[365144222,1749491431860,-500.0,0.000186,6]
[365144223,1749491431870,-1000.0,0.000187,6]
[365144224,1749491431879,-356.0,0.00018799,2]
[365144225,1749491431889,-1500.0,0.000188,6]
[365144226,1749491431898,-1957.856,0.00018808,2]
[365144227,1749491431907,-207.4,0.00018808,2]
[365144228,1749491431918,-500.0,0.00018818,2]
[365144229,1749491431927,-500.0,0.00018818,2]
[365144230,1749491431936,-182.00396142,0.00018818,2]
[365144231,1749491431946,-500.0,0.00018818,2]
[365144232,1749491431955,-188.94212134,0.00018818,2]
[365144233,1749491431964,-500.0,0.00018818,2]
[365144234,1749491431973,-459.19644141,0.00018818,2]
[365144235,1749491431983,-500.0,0.00018818,2]
[365144236,1749491431992,-500.0,0.00018818,2]
[365144237,1749491432002,-500.0,0.00018818,2]
[365144238,1749491432011,-15633.02584998,0.00018819,2]
[365144239,1749491432020,-2030.296672,0.00018863,2]
[365144240,1749491432029,-375.0,0.00018877,2]
[365144241,1749491432039,-2100.0,0.000189,6]
[365144243,1749491432048,-587.40403898,0.000189,2]
[365144244,1749491432058,-2105.41764886,0.00018918,2]
[365144245,1749491432066,-587.40403884,0.00018934,2]
[365144246,1749491432075,-587.40403884,0.00018969,2]
[365144247,1749491432083,-2183.31810187,0.00018973,2]
[365144248,1749491432092,-151.0,0.00018979,2]
[365144249,1749491432100,-151.0,0.00018979,2]
[365144250,1749491432109,-1000.0,0.00018979,2]
[365144251,1749491432118,-151.0,0.00018979,2]
[365144252,1749491432127,-668.65185757,0.00018979,2]
[365144253,1749491432136,-16065.78307117,0.0001898,2]
[365144254,1749491432145,-2717.6153,0.00018986,2]
[365144255,1749491432156,-1025.07147938,0.00018989,2]
[365144256,1749491432165,-3185.85683035,0.0001899,3]
[365144257,1749491432175,-17265.13917942,0.0001899,2]
[365144258,1749491432185,-1000.0,0.00019,2]
[365144259,1749491432194,-250.0,0.00019,2]
[365144260,1749491432204,-587.40403884,0.00019003,2]
[365144261,1749491432214,-528.16175069,0.00019014,2]
[365144262,1749491432223,-422.52940055,0.00019014,2]
[365144263,1749491432233,-158.44852521,0.00019014,2]
[365144264,1749491432243,-151.85,0.00019018,2]
[365144265,1749491432252,-833.29909032,0.00019028,3]
[365144266,1749491432262,-2264.10087164,0.00019028,2]
[365144267,1749491432271,-151.0,0.00019034,2]
[365144268,1749491432281,-587.40403884,0.00019038,2]
[365144269,1749491432290,-168.42041015,0.00019057,2]
[365144270,1749491432300,-539.17267283,0.00019057,2]
[365144271,1749491432309,-528.16175069,0.00019068,2]
[365144272,1749491432318,-422.52940055,0.00019068,2]
[365144273,1749491432327,-587.40403884,0.00019072,2]
[365144274,1749491432337,-3550.07790156,0.00019077,2]
[365144275,1749491432347,-195.5976,0.00019077,2]
[365144276,1749491432357,-937.5142,0.00019078,2]
[365144277,1749491432366,-2347.87260389,0.00019083,2]
[365144278,1749491432376,-1000.0,0.000191,2]
[365144279,1749491432385,-587.40403884,0.00019107,2]
[365144280,1749491432395,-532.205221,0.00019115,2]
[365144281,1749491432405,-158.44852521,0.00019123,2]
[365144282,1749491432414,-539.17267277,0.00019132,2]
[365144283,1749491432424,-2434.74389024,0.00019138,2]
[365144284,1749491432434,-587.40403884,0.00019141,2]
[365144285,1749491432443,-528.16175069,0.00019151,2]
[365144286,1749491432453,-422.52940055,0.00019151,2]
[365144287,1749491432462,-3550.07790156,0.00019157,2]
[365144288,1749491432472,-273.472,0.00019166,2]
[365144289,1749491432485,-500.0,0.00019173,2]
[365144290,1749491432494,-500.0,0.00019173,2]
[365144291,1749491432504,-159.89902706,0.00019173,2]
[365144292,1749491432513,-161.89098408,0.00019173,2]
[365144293,1749491432523,-500.0,0.00019173,2]
[365144294,1749491432532,-500.0,0.00019173,2]
[365144295,1749491432542,-500.0,0.00019173,2]
[365144296,1749491432553,-386.69184376,0.00019173,2]
[365144297,1749491432562,-500.0,0.00019173,2]
[365144298,1749491432571,-34432.32537937,0.00019174,2]
[365144299,1749491432584,-5156.84361575,0.00019174,2]
[365144300,1749491432596,-300.0,0.00019174,2]
[365144301,1749491432612,-87506.55101467,0.00019174,2]
[365144302,1749491432623,-10844.10255999,0.00019174,2]
[365144307,1749491437633,-357366.59882364,0.0001899,3]
[365144308,1749491437948,-2339.93589165,0.0001899,3]
[365144309,1749491437960,-2564.3,0.0001899,3]
[365144509,1749491440033,-999.962334,0.0001899,3]
[365144516,1749491440088,-674613.5510132,0.0001899,3]
[365144535,1749491442855,-53410.9491256,0.0001899,3]
[365144536,1749491442931,-198916.47344067,0.0001899,3]
[365144538,1749491445745,-1887.93116305,0.0001899,3]
[365144539,1749491445760,-2172.91492049,0.0001899,3]
[365144540,1749491445774,-1205.09999248,0.0001899,3]
[365144541,1749491445787,-5229.0,0.0001899,3]
[365144542,1749491445800,-3266.5934996,0.0001899,3]
[365144543,1749491445822,-64882.20692963,0.0001899,3]
[365144544,1749491445835,-1083.0,0.0001899,3]
[365144545,1749491445854,-622.7486386,0.0001899,3]
[365144546,1749491445964,-556.4,0.0001899,3]
[365144547,1749491446022,-60370.88397636,0.0001899,3]
[365144548,1749491446072,-9388.41046492,0.0001899,3]
[365144550,1749491556007,5007.40729,0.00018,30]
[365144551,1749491561264,3451.53309,0.00017,2]
[365144553,1749491592307,5000.0,0.0001801,2]
[365144556,1749491833572,413.44,0.00013699,2]
[365144557,1749491950270,1011.50313504,0.00014,2]
[365144558,1749492012229,201.0,0.00017392,2]
[365144559,1749492026360,299.69,0.00018011,2]
[365144560,1749492041548,233.0,0.00017392,2]
[365144561,1749492049061,156.327693,0.00017954,2]
[365144562,1749492065594,170.33,0.00018008,2]
[365144563,1749492122730,1044.8438,0.00017954,2]
[365144564,1749492247934,29628.3,0.00017903,2]
[365144565,1749492342008,1215.72,0.00015987,2]
[365144566,1749492371799,201.0,0.00017543,2]
[365144567,1749492401295,217.0,0.00017543,2]
[365144595,1749492588885,7000.0,0.00018,2]
[365144596,1749492590646,2119.0,0.00024658,120]
[365144602,1749492631895,-884.0,0.00018045,2]
[365144603,1749492631905,-300.0,0.00018045,2]
[365144604,1749492631916,-300.0,0.00018045,2]
[365144605,1749492631925,-600.0,0.00018045,4]
[365144606,1749492631935,-300.0,0.00018045,2]
[365144607,1749492631945,-600.0,0.00018045,4]
[365144608,1749492631956,-159.69768188,0.00018045,2]
[365144609,1749492631967,-1000.0,0.00018089,2]
[365144610,1749492631977,-1200.0,0.00018095,2]
[365144611,1749492631987,-7252.88,0.00018096,2]
[365144612,1749492631997,-354.27504792,0.000181,2]
[365144704,1749492637948,-357.606,0.000181,2]
[365144705,1749492638053,-3716.36895208,0.000181,2]
[365144706,1749492638063,-200.0,0.00018117,2]
[365144707,1749492638073,-150.0,0.0001817,7]
[365144708,1749492638082,-450.71,0.00018187,2]
[365144709,1749492638093,-1215.72,0.00018251,2]
[365144710,1749492638103,-151.0,0.00018376,2]
[365144711,1749492638112,-1957.856,0.00018376,2]
[365144712,1749492638122,-506.77134837,0.00018376,2]
[365144713,1749492638134,-122.99663309,0.00018376,2]
[365144714,1749492638142,-207.4,0.00018376,2]
[365144715,1749492638151,-461.04,0.000184,2]
[365144716,1749492638160,-2030.296672,0.00018431,2]
[365144718,1749492638169,-2105.41764886,0.00018486,2]
[365144720,1749492638178,-2183.31810187,0.00018541,2]
[365144721,1749492638189,-2264.10087164,0.00018596,2]
[365144722,1749492638199,-2347.87260389,0.00018651,2]
[365144723,1749492638209,-167.73,0.00018651,2]
[365144725,1749492638219,-250.0,0.00018701,2]
[365144727,1749492638229,-2434.74389024,0.00018706,2]
[365144729,1749492638239,-201.0,0.00018722,3]
[365144731,1749492638249,-2524.82941417,0.00018761,2]
[365144733,1749492638259,-200.0,0.000188,6]
[365144735,1749492638268,-2618.2481025,0.00018816,2]
[365144737,1749492638278,-2715.12328229,0.00018871,2]
[365144739,1749492638287,-500.0,0.000189,6]
[365144741,1749492638296,-431.28982239,0.000189,2]
[365144743,1749492638305,-1000.0,0.000189,2]
[365144745,1749492638313,-2815.58284374,0.00018926,2]
[365144747,1749492638322,-431.28982232,0.00018934,2]
[365144749,1749492638331,-431.28982232,0.00018969,2]
[365144751,1749492638339,-2919.75940895,0.00018981,2]
[365144753,1749492638348,-5007.40729,0.00019,30]
[365144754,1749492638356,-1000.0,0.00019,2]
[365144756,1749492638365,-431.28982232,0.00019003,2]
[365144758,1749492638374,-3027.79050709,0.00019036,2]
[365144760,1749492638384,-431.28982232,0.00019038,2]
[365144762,1749492638393,-461.18,0.00019041,2]
[365144764,1749492638402,-461.18,0.00019041,2]
[365144766,1749492638411,-461.18,0.00019041,2]
[365144768,1749492638421,-500.0,0.00019072,2]
[365144770,1749492638430,-500.0,0.00019072,2]
[365144772,1749492638439,-500.0,0.00019072,2]
[365144774,1749492638448,-500.0,0.00019072,2]
[365144775,1749492638458,-500.0,0.00019072,2]
[365144778,1749492638468,-178.32110932,0.00019072,2]
[365144780,1749492638478,-500.0,0.00019072,2]
[365144782,1749492638488,-500.0,0.00019072,2]
[365144783,1749492638497,-431.28982232,0.00019072,2]
[365144785,1749492638506,-2300.02728738,0.00019073,2]
[365144787,1749492638516,-196.66935034,0.00019078,2]
[365144789,1749492638525,-431.33813827,0.00019078,2]
[365144791,1749492638535,-2300.02728733,0.00019091,2]
[365144793,1749492638544,-3139.81875585,0.00019091,2]
[365144795,1749492638554,-995.3482,0.00019098,2]
[365144797,1749492638563,-800.0,0.000191,6]
[365144799,1749492638573,-431.28982232,0.00019107,2]
[365144801,1749492638582,-2300.02728733,0.00019108,2]
[365144803,1749492638591,-478.984699,0.00019115,2]
[365144805,1749492638601,-2300.02728733,0.00019126,2]
[365144807,1749492638611,-431.28982232,0.00019141,2]
[365144809,1749492638620,-2300.02728733,0.00019143,2]
[365144811,1749492638630,-3255.99204981,0.00019146,2]
[365144813,1749492638639,-2300.02728733,0.00019161,2]
[365144815,1749492638648,-225.51880145,0.00019166,2]
[365144817,1749492638657,-288.47908105,0.00019169,2]
[365144819,1749492638670,-142.85905716,0.00019169,2]
[365144821,1749492638679,-500.0,0.00019172,2]
[365144823,1749492638689,-187.63431583,0.00019172,2]
[365144825,1749492638698,-188.56627054,0.00019172,2]
[365144827,1749492638707,-483.80482433,0.00019172,2]
[365144829,1749492638717,-232.11196843,0.00019172,2]
[365144831,1749492638726,-186.23157133,0.00019172,2]
[365144833,1749492638735,-500.0,0.00019172,2]
[365144835,1749492638745,-500.0,0.00019172,2]
[365144837,1749492638755,-500.0,0.00019172,2]
[365144839,1749492638764,-174.82122211,0.00019172,2]
[365144841,1749492638773,-500.0,0.00019172,2]
[365144843,1749492638783,-500.0,0.00019172,2]
[365144845,1749492638793,-500.0,0.00019172,2]
[365144847,1749492638802,-500.0,0.00019172,2]
[365144849,1749492638812,-500.0,0.00019173,2]
[365144851,1749492638822,-500.0,0.00019173,2]
[365144853,1749492638831,-159.89667604,0.00019173,2]
[365144855,1749492638840,-500.0,0.00019173,2]
[365144857,1749492638850,-500.0,0.00019173,2]
[365144859,1749492638860,-587.91829174,0.00019173,2]
[365144861,1749492638870,-6884.218151,0.00019173,2]
[365144863,1749492638884,-203519.8985319,0.00019173,2]
[365144865,1749492638894,-200.0,0.00019174,2]
[365144867,1749492638904,-180.54860547,0.00019174,2]
[365144869,1749492638914,-156.68372719,0.00019174,2]
[365144871,1749492638923,-200.0,0.00019174,2]
[365144873,1749492638933,-198.37042496,0.00019174,2]
[365144875,1749492638944,-431.28982232,0.00019176,2]
[365144877,1749492638957,-179051.47415378,0.00019178,2]
[365144879,1749492638966,-157.72449,0.00019178,2]
[365144881,1749492638976,-151.585445,0.00019178,2]
[365144883,1749492638985,-151.0,0.00019178,2]
[365144885,1749492638995,-151.0,0.00019178,2]
[365144887,1749492639005,-151.0,0.00019178,2]
[365144889,1749492639014,-151.0,0.00019178,2]
[365144891,1749492639024,-151.0,0.00019178,2]
[365144893,1749492639034,-151.0,0.00019178,2]
[365144894,1749492639043,-151.0,0.00019178,2]
[365144897,1749492639054,-151.0,0.00019178,2]
[365144898,1749492639063,-250.0,0.00019178,2]
[365144900,1749492639073,-250.0,0.00019178,2]
[365144902,1749492639083,-151.0,0.00019178,2]
[365144904,1749492639092,-177.763755,0.00019178,2]
[365144906,1749492639101,-151.0,0.00019178,2]
[365144908,1749492639110,-151.0,0.00019178,2]
[365144910,1749492639120,-206.15849,0.00019178,2]
[365144912,1749492639130,-164.054378,0.00019178,2]
[365144914,1749492639140,-151.0,0.00019178,2]
[365144916,1749492639149,-151.0,0.00019178,2]
[365144918,1749492639159,-151.0,0.00019178,2]
[365144920,1749492639168,-151.0,0.00019178,2]
[365144922,1749492639178,-151.0,0.00019178,2]
[365144924,1749492639187,-151.0,0.00019178,2]
[365144926,1749492639197,-151.0,0.00019178,2]
[365144928,1749492639207,-151.0,0.00019178,2]
[365144930,1749492639216,-159.385642,0.00019178,2]
[365144932,1749492639226,-151.095762,0.00019178,2]
[365144933,1749492639236,-151.0,0.00019178,2]
[365144936,1749492639246,-151.0,0.00019178,2]
[365144937,1749492639256,-151.0,0.00019178,2]
[365144939,1749492639265,-205.975961,0.00019178,2]
[365144941,1749492639275,-151.0,0.00019178,2]
[365144943,1749492639285,-151.0,0.00019178,2]
[365144945,1749492639294,-151.0,0.00019178,2]
[365144947,1749492639304,-151.0,0.00019178,2]
[365144949,1749492639315,-151.0,0.00019178,2]
[365144951,1749492639324,-152.387457,0.00019178,2]
[365144953,1749492639334,-258.4464,0.00019178,2]
[365144955,1749492639343,-258.4464,0.00019178,2]
[365144957,1749492639353,-151.0,0.00019178,2]
[365144959,1749492639362,-662.696578,0.00019178,2]
[365144961,1749492639371,-662.696578,0.00019178,2]
[365144963,1749492639380,-151.0,0.00019178,2]
[365144965,1749492639390,-662.696578,0.00019178,2]
[365144967,1749492639399,-662.696578,0.00019178,2]
[365144969,1749492639409,-151.0,0.00019178,2]
[365144971,1749492639419,-151.0,0.00019178,2]
[365144973,1749492639429,-151.0,0.00019178,2]
[365144975,1749492639439,-418.26239483,0.00019178,2]
[365144977,1749492639448,-151.0,0.00019178,2]
[365144979,1749492639458,-151.0,0.00019178,2]
[365144981,1749492639467,-480.0,0.00019178,2]
[365144983,1749492639476,-151.0,0.00019178,2]
[365144985,1749492639486,-361.38651,0.00019178,2]
[365144986,1749492639495,-490.0,0.00019178,2]
[365144988,1749492639505,-361.38651,0.00019178,2]
[365144991,1749492639515,-151.0,0.00019178,2]
[365144992,1749492639524,-490.0,0.00019178,2]
[365144994,1749492639533,-480.0,0.00019178,2]
[365144996,1749492639543,-515.190567,0.00019178,2]
[365144998,1749492639552,-515.190567,0.00019178,2]
[365145000,1749492639562,-480.0,0.00019178,2]
[365145002,1749492639571,-490.0,0.00019178,2]
[365145004,1749492639581,-490.0,0.00019178,2]
[365145006,1749492639591,-490.0,0.00019178,2]
[365145008,1749492639601,-490.0,0.00019178,2]
[365145010,1749492639610,-490.0,0.00019178,2]
[365145012,1749492639619,-498.23,0.00019178,2]
[365145014,1749492639629,-490.0,0.00019178,2]
[365145016,1749492639638,-151.0,0.00019178,2]
[365145018,1749492639647,-576.31,0.00019178,2]
[365145020,1749492639657,-286.962268,0.00019178,2]
[365145022,1749492639667,-286.962268,0.00019178,2]
[365145024,1749492639676,-490.0,0.00019178,2]
[365145026,1749492639686,-151.0,0.00019178,2]
[365145028,1749492639696,-490.0,0.00019178,2]
[365145030,1749492639706,-286.962268,0.00019178,2]
[365145032,1749492639715,-286.962268,0.00019178,2]
[365145034,1749492639724,-151.0,0.00019178,2]
[365145036,1749492639733,-151.0,0.00019178,2]
[365145038,1749492639743,-490.0,0.00019178,2]
[365145039,1749492639752,-151.0,0.00019178,2]
[365145041,1749492639762,-490.0,0.00019178,2]
[365145043,1749492639771,-902.470634,0.00019178,2]
[365145045,1749492639780,-490.0,0.00019178,2]
[365145047,1749492639790,-151.0,0.00019178,2]
[365145049,1749492639799,-902.470634,0.00019178,2]
[365145051,1749492639808,-490.0,0.00019178,2]
[365145053,1749492639818,-512.35,0.00019178,2]
[365145055,1749492639827,-490.0,0.00019178,2]
[365145057,1749492639837,-490.0,0.00019178,2]
[365145060,1749492639846,-490.0,0.00019178,2]
[365145062,1749492639855,-490.0,0.00019178,2]
[365145064,1749492639865,-490.0,0.00019178,2]
[365145066,1749492639877,-490.0,0.00019178,2]
[365145068,1749492639887,-490.0,0.00019178,2]
[365145069,1749492639896,-151.0,0.00019178,2]
[365145070,1749492639907,-490.0,0.00019178,2]
[365145071,1749492639917,-490.0,0.00019178,2]
[365145072,1749492639927,-333.054529,0.00019178,2]
[365145073,1749492639936,-480.0,0.00019178,2]
[365145074,1749492639946,-333.054529,0.00019178,2]
[365145075,1749492639956,-1144.66,0.00019178,2]
[365145076,1749492639966,-490.0,0.00019178,2]
[365145077,1749492639976,-490.0,0.00019178,2]
[365145078,1749492639985,-490.0,0.00019178,2]
[365145079,1749492639994,-861.68,0.00019178,2]
[365145080,1749492640003,-629.64,0.00019178,2]
[365145082,1749492640012,-682.16,0.00019178,2]
[365145084,1749492640021,-151.0,0.00019178,2]
[365145086,1749492640031,-504.57,0.00019178,2]
[365145087,1749492640040,-490.0,0.00019178,2]
[365145089,1749492640052,-151.0,0.00019178,2]
[365145091,1749492640062,-484.144475,0.00019178,2]
[365145093,1749492640071,-490.0,0.00019178,2]
[365145095,1749492640080,-490.0,0.00019178,2]
[365145097,1749492640089,-484.144475,0.00019178,2]
[365145099,1749492640098,-515.88,0.00019178,2]
[365145101,1749492640106,-515.88,0.00019178,2]
[365145103,1749492640115,-166.089853,0.00019178,2]
[365145105,1749492640124,-490.0,0.00019178,2]
[365145106,1749492640132,-531.02,0.00019178,2]
[365145108,1749492640141,-490.0,0.00019178,2]
[365145110,1749492640150,-231.367543,0.00019178,2]
[365145112,1749492640159,-490.0,0.00019178,2]
[365145114,1749492640167,-490.0,0.00019178,2]
[365145116,1749492640176,-490.0,0.00019178,2]
[365145117,1749492640186,-490.0,0.00019178,2]
[365145119,1749492640194,-937.12,0.00019178,2]
[365145121,1749492640203,-910.5,0.00019178,2]
[365145123,1749492640213,-167.150323,0.00019178,2]
[365145125,1749492640223,-490.0,0.00019178,2]
[365145127,1749492640232,-490.0,0.00019178,2]
[365145129,1749492640242,-490.0,0.00019178,2]
[365145131,1749492640251,-250.0,0.00019178,2]
[365145133,1749492640260,-490.0,0.00019178,2]
[365145135,1749492640270,-490.0,0.00019178,2]
[365145137,1749492640279,-307.663782,0.00019178,2]
[365145138,1749492640288,-490.0,0.00019178,2]
[365145140,1749492640297,-151.0,0.00019178,2]
[365145142,1749492640306,-151.0,0.00019178,2]
[365145144,1749492640316,-490.0,0.00019178,2]
[365145146,1749492640325,-307.663782,0.00019178,2]
[365145148,1749492640334,-490.0,0.00019178,2]
[365145150,1749492640344,-151.0,0.00019178,2]
[365145152,1749492640353,-490.0,0.00019178,2]
[365145154,1749492640362,-151.0,0.00019178,2]
[365145156,1749492640371,-490.0,0.00019178,2]
[365145158,1749492640380,-1092.6,0.00019178,2]
[365145160,1749492640389,-490.0,0.00019178,2]
[365145162,1749492640399,-436.59571566,0.00019178,2]
[365145164,1749492640408,-410.75791653,0.00019178,2]
[365145166,1749492640418,-519.16,0.00019178,2]
[365145167,1749492640428,-785.46,0.00019178,2]
[365145169,1749492640437,-490.0,0.00019178,2]
[365145171,1749492640446,-480.0,0.00019178,2]
[365145173,1749492640455,-490.0,0.00019178,2]
[365145175,1749492640465,-490.0,0.00019178,2]
[365145177,1749492640474,-151.0,0.00019178,2]
[365145179,1749492640484,-156.736326,0.00019178,2]
[365145181,1749492640494,-490.0,0.00019178,2]
[365145183,1749492640503,-490.0,0.00019178,2]
[365145185,1749492640512,-559.28,0.00019178,2]
[365145187,1749492640522,-693.59,0.00019178,2]
[365145189,1749492640531,-490.0,0.00019178,2]
[365145191,1749492640540,-490.0,0.00019178,2]
[365145193,1749492640549,-859.670747,0.00019178,2]
[365145195,1749492640559,-480.0,0.00019178,2]
[365145197,1749492640568,-806.58,0.00019178,2]
[365145199,1749492640578,-490.0,0.00019178,2]
[365145201,1749492640587,-490.0,0.00019178,2]
[365145203,1749492640596,-490.0,0.00019178,2]
[365145205,1749492640605,-859.670747,0.00019178,2]
[365145207,1749492640615,-480.0,0.00019178,2]
[365145209,1749492640624,-490.0,0.00019178,2]
[365145211,1749492640633,-490.0,0.00019178,2]
[365145213,1749492640643,-490.0,0.00019178,2]
[365145215,1749492640652,-490.0,0.00019178,2]
[365145217,1749492640662,-490.0,0.00019178,2]
[365145219,1749492640671,-490.0,0.00019178,2]
[365145220,1749492640680,-615.22,0.00019178,2]
[365145222,1749492640689,-490.0,0.00019178,2]
[365145224,1749492640698,-151.0,0.00019178,2]
[365145226,1749492640707,-151.0,0.00019178,2]
[365145228,1749492640717,-490.0,0.00019178,2]
[365145230,1749492640726,-490.0,0.00019178,2]
[365145232,1749492640735,-798.5,0.00019178,2]
[365145234,1749492640744,-490.0,0.00019178,2]
[365145236,1749492640753,-151.0,0.00019178,2]